[Event "FIDE Rating Open 2024"]
[Site "Dhaka"]
[Date "2024.01.20"]
[Round "6.4"]
[White "Anata, Choudhury"]
[Black "Masum, Hossain"]
[Result "1-0"]
[ECO "B90"]
[WhiteElo "2196"]
[BlackElo "1987"]
[Annotator "RC"]
[PlyCount "90"]
[EventDate "2024.01.16"]
[EventType "swiss"]
[EventCountry "BAN"]
[SourceTitle "playchess.com"]
[Source "ChessBase"]
[SourceQuality "1"]
[TimeControl "5400+30"]

1. e4 {[%emt 0:00:21]} c5 {[%emt 0:00:03]} 2. Nf3 {[%emt 0:00:13]} d6 {[%emt 0:00:23]} 3. d4 {[%emt 0:00:08]} cxd4 {[%emt 0:00:05]} 4. Nxd4 {[%emt 0:00:06]} Nf6 {[%emt 0:00:02]} 5. Nc3 {[%emt 0:00:12]} a6 {[%emt 0:00:04]} 6. h3 {[%emt 0:00:08]} e5 {[%emt 0:00:48]} 7. Nf3 {[%emt 0:00:12]} b5 {[%emt 0:00:17]} 8. Bg5 {[%emt 0:01:42]} Bb7 {[%emt 0:01:28]} 9. a4 {[%emt 0:00:24]} b4 {[%emt 0:00:52]} 10. Nd5 {[%emt 0:00:22]} Bxd5 {[%emt 0:00:05]} 11. Bxf6 {[%emt 0:00:08]} Qxf6 {[%emt 0:02:21]} 12. Qxd5 {[%emt 0:00:16]} Ra7 {[%emt 0:00:26]} 13. Bc4 {[%emt 0:02:32]} Be7 {[%emt 0:01:15]} 14. O-O {[%emt 0:01:06]} O-O {[%emt 0:00:51]} 15. Rfd1 {[%emt 0:02:53]} Rc8 {[%emt 0:01:48]} 16. Nd2 {[%emt 0:03:12]} Nc6 {[%emt 0:01:32]} 17. Qd3 {[%emt 0:09:27]} Nd4 {[%emt 0:01:45]} 18. Nf1 {[%emt 0:03:12]} Ne6 {[%emt 0:08:43]} 19. Ne3 {[%emt 0:04:42]} Nf4 {[%emt 1:17:12]} 20. Qf1 {[%emt 0:00:17]} Qg6 {[%emt 0:00:00]} 21. g3 {[%emt 0:00:33]} a5 {[%emt 0:00:00]} 22. Kh2 {[%emt 0:14:23]} Qxe4 {[%emt 0:00:00]} 23. gxf4 {[%emt 0:00:58]} Qxf4+ {[%emt 0:00:00]} 24. Kg1 {[%emt 0:01:24]} Bf8 {[%emt 0:00:00]} 25. b3 {[%emt 0:01:04]} Kh8 {[%emt 0:00:00]} 26. Nd5 {[%emt 0:01:51]} Qh4 {[%emt 0:00:00]} 27. Qd3 {[%emt 0:01:04]} g6 {[%emt 0:00:00]} 28. Qg3 {[%emt 0:00:22]} Qd8 {[%emt 0:00:00]} 29. Qe3 {[%emt 0:01:51]} Rca8 {[%emt 0:00:00]} 30. Bb5 {[%emt 0:01:28]} f5 {[%emt 0:00:00]} 31. Bc6 {[%emt 0:01:56]} f4 {[%emt 0:00:00]} 32. Qb6 {[%emt 0:00:09]} Qg5+ {[%emt 0:00:00]} 33. Kh2 {[%emt 0:00:13]} Ra6 {[%emt 0:00:00]} 34. Qb5 {[%emt 0:00:45]} Qh4 {[%emt 0:00:00]} 35. Rf1 {[%emt 0:04:47]} g5 {[%emt 0:00:00]} 36. Bxa8 {[%emt 0:01:08]} g4 {[%emt 0:00:00]} 37. Nxf4 {[%emt 0:02:19]} Rxa8 {[%emt 0:00:00]} 38. Ng2 {[%emt 0:01:12]} Qxh3+ {[%emt 0:00:00]} 39. Kg1 {[%emt 0:00:12]} Rc8 {[%emt 0:08:17]} 40. Qd7 {[%emt 0:03:34]} Rc3 {[%emt 0:00:30]} 41. Rae1 {[%emt 0:00:31]} Rf3 {[%emt 0:00:58]} 42. Re3 {[%emt 0:01:03]} Qh5 {[%emt 0:00:02]} 43. Qd8 {[%emt 0:01:50]} g3 {[%emt 0:00:59]} 44. fxg3 {[%emt 0:00:14]} Rxf1+ {[%emt 0:00:12]} 45. Kxf1 {[%emt 0:00:10]} Qf5+ {[%emt 0:01:30]} 1-0

[Event "FIDE Rating Open 2024"]
[Site "Dhaka"]
[Date "2024.01.20"]
[Round "6.5"]
[White "Uddin, Saif"]
[Black "Saiful Islam, Chowdhury"]
[Result "0-1"]
[ECO "A05"]
[WhiteElo "1938"]
[BlackElo "2130"]
[Annotator "NA RC"]
[PlyCount "75"]
[EventDate "2024.01.16"]
[EventType "swiss"]
[EventCountry "BAN"]
[SourceTitle "playchess.com"]
[Source "ChessBase"]
[SourceQuality "1"]
[TimeControl "5400+30"]

1. Nf3 {[%emt 0:00:05]} Nf6 {[%emt 0:00:31]} 2. b3 {[%emt 0:00:11]} e6 {[%emt 0:00:38]} 3. e3 {[%emt 0:00:25]} b6 {[%emt 0:00:27]} 4. Bb2 {[%emt 0:00:16]} Bb7 {[%emt 0:00:14]} 5. c4 {[%emt 0:00:20]} Nc6 {[%emt 0:00:54]} 6. Be2 {[%emt 0:00:51]} Be7 {[%emt 0:00:39]} 7. O-O {[%emt 0:00:15]} O-O {[%emt 0:00:10]} 8. d4 {[%emt 0:02:07]} d5 {[%emt 0:01:35]} 9. Nbd2 {[%emt 0:01:13]} a5 {[%emt 0:01:19]} 10. a3 {[%emt 0:00:41]} Bd6 {[%emt 0:01:35]} 11. Qc2 {[%emt 0:00:14]} Re8 {[%emt 0:01:54]} 12. c5 {[%emt 0:03:26]} Bf8 {[%emt 0:01:40]} 13. Bb5 {[%emt 0:01:23]} bxc5 {[%emt 0:00:48]} 14. dxc5 {[%emt 0:00:52]} Nd7 {[%emt 0:00:23]} 15. Bxc6 {[%emt 0:01:51]} Bxc6 {[%emt 0:00:16]} 16. Nd4 {[%emt 0:00:07]} Nb8 {[%emt 0:01:49]} 17. b4 {[%emt 0:02:47]} Qd7 {[%emt 0:03:37]} 18. Rfc1 {[%emt 0:06:51]} axb4 {[%emt 0:02:45]} 19. axb4 {[%emt 0:01:00]} Rxa1 {[%emt 0:00:11]} 20. Bxa1 {[%emt 0:00:15]} e5 {[%emt 0:00:28]} 21. Nxc6 {[%emt 0:00:21]} Nxc6 {[%emt 0:03:02]} 22. Qa4 {[%emt 0:01:55]} d4 {[%emt 0:01:04]} 23. exd4 {[%emt 0:02:25]} exd4 {[%emt 0:00:11]} 24. Nf3 {[%emt 0:00:36]} Qd5 {[%emt 0:06:26]} 25. h3 {[%emt 0:03:20]} Rd8 {[%emt 0:08:53]} 26. Rd1 {[%emt 0:04:49]} d3 {[%emt 0:07:26]} 27. Bc3 {[%emt 0:03:10]} f6 {[%emt 0:02:28]} 28. Ne1 {[%emt 0:05:06]} Qe4 {[%emt 0:03:47]} 29. Qb3+ {[%emt 0:00:57]} Kh8 {[%emt 0:00:13]} 30. b5 {[%emt 0:00:48]} d2 {[%emt 0:06:49]} 31. Nf3 {[%emt 0:00:08]} Ne5 {[%emt 0:01:05]} 32. Bxe5 {[%emt 0:01:15]} fxe5 {[%emt 0:00:11]} 33. b6 {[%emt 0:02:05]} cxb6 {[%emt 0:04:54]} 34. cxb6 {[%emt 0:00:30]} Bb4 {[%emt 0:02:34]} 35. Qe6 {[%emt 0:01:36]} Qc2 {[%emt 0:03:01]} 36. Nxe5 {[%emt 0:01:16]} Qxd1+ {[%emt 0:00:14]} 37. Kh2 {[%emt 0:00:01]} Bd6 {[%emt 0:01:09]} 38. Qb3 {[%emt 0:01:02]} 0-1

[Event "FIDE Rating Open 2024"]
[Site "Dhaka"]
[Date "2024.01.20"]
[Round "6.6"]
[White "Ahmed, Shafiq"]
[Black "Sajidul, Haque"]
[Result "1/2-1/2"]
[ECO "D47"]
[WhiteElo "2082"]
[BlackElo "1922"]
[Annotator "NA"]
[PlyCount "122"]
[EventDate "2024.01.16"]
[EventType "swiss"]
[EventCountry "BAN"]
[SourceTitle "playchess.com"]
[Source "ChessBase"]
[SourceQuality "1"]
[TimeControl "5400+30"]

1. d4 {[%emt 0:00:12]} Nf6 {[%emt 0:00:12]} 2. c4 {[%emt 0:00:12]} c6 {[%emt 0:03:33]} 3. Nc3 {[%emt 0:00:32]} d5 {[%emt 0:00:02]} 4. e3 {[%emt 0:00:47]} e6 {[%emt 0:03:03]} 5. Nf3 {[%emt 0:01:29]} Nbd7 {[%emt 0:00:03]} 6. Bd3 {[%emt 0:02:30]} dxc4 {[%emt 0:01:18]} 7. Bxc4 {[%emt 0:00:13]} b5 {[%emt 0:00:22]} 8. Bd3 {[%emt 0:00:48]} Bd6 {[%emt 0:01:23]} 9. e4 {[%emt 0:03:01]} e5 {[%emt 0:00:35]} 10. d5 {[%emt 0:09:38]} cxd5 {[%emt 0:01:26]} 11. Nxb5 {[%emt 0:02:59]} Bb4+ {[%emt 0:01:41]} 12. Bd2 {[%emt 0:04:13]} Bxd2+ {[%emt 0:00:16]} 13. Qxd2 {[%emt 0:00:32]} O-O {[%emt 0:06:35]} 14. O-O {[%emt 0:06:00]} dxe4 {[%emt 0:02:32]} 15. Bxe4 {[%emt 0:00:06]} Nxe4 {[%emt 0:00:21]} 16. Qd5 {[%emt 0:00:07]} Ba6 {[%emt 0:00:30]} 17. Rfd1 {[%emt 0:01:17]} Nef6 {[%emt 0:00:29]} 18. Qc6 {[%emt 0:01:07]} Qb6 {[%emt 0:02:11]} 19. Qxb6 {[%emt 0:00:11]} axb6 {[%emt 0:00:12]} 20. Nc7 {[%emt 0:00:08]} Ra7 {[%emt 0:01:17]} 21. Nxa6 {[%emt 0:00:20]} Rxa6 {[%emt 0:00:02]} 22. Rd6 {[%emt 0:00:36]} Rc8 {[%emt 0:00:57]} 23. Rad1 {[%emt 0:04:11]} h6 {[%emt 0:00:21]} 24. a3 {[%emt 0:00:13]} Kf8 {[%emt 0:01:43]} 25. h4 {[%emt 0:00:31]} Ke7 {[%emt 0:01:27]} 26. g4 {[%emt 0:00:19]} g5 {[%emt 0:02:00]} 27. hxg5 {[%emt 0:01:17]} hxg5 {[%emt 0:00:49]} 28. Ne1 {[%emt 0:05:24]} Ra4 {[%emt 0:04:19]} 29. f3 {[%emt 0:01:18]} Rcc4 {[%emt 0:01:26]} 30. Ng2 {[%emt 0:05:04]} Rd4 {[%emt 0:01:28]} 31. R6xd4 {[%emt 0:06:09]} exd4 {[%emt 0:01:15]} 32. Ne1 {[%emt 0:01:27]} Ne5 {[%emt 0:01:11]} 33. Kf2 {[%emt 0:00:17]} d3 {[%emt 0:03:29]} 34. Nxd3 {[%emt 0:01:16]} Rd4 {[%emt 0:00:10]} 35. Re1 {[%emt 0:00:03]} Rxd3 {[%emt 0:00:37]} 36. Rxe5+ {[%emt 0:00:05]} Kd6 {[%emt 0:00:17]} 37. Rxg5 {[%emt 0:03:42]} Rd5 {[%emt 0:01:03]} 38. Rg7 {[%emt 0:01:20]} Ke7 {[%emt 0:03:08]} 39. g5 {[%emt 0:00:24]} Nh5 {[%emt 0:00:40]} 40. Rg8 {[%emt 0:00:49]} Rd8 {[%emt 0:01:05]} 41. Rxd8 {[%emt 0:00:25]} Kxd8 {[%emt 0:00:10]} 42. Ke3 {[%emt 0:00:13]} Kd7 {[%emt 0:00:52]} 43. Ke4 {[%emt 0:00:53]} Ke6 {[%emt 0:01:30]} 44. a4 {[%emt 0:00:43]} Ng3+ {[%emt 0:00:20]} 45. Kd3 {[%emt 0:05:51]} Kd5 {[%emt 0:02:20]} 46. b4 {[%emt 0:01:26]} Nf5 {[%emt 0:01:39]} 47. a5 {[%emt 0:02:07]} b5 {[%emt 0:20:02]} 48. a6 {[%emt 0:02:36]} Kc6 {[%emt 0:01:24]} 49. Ke4 {[%emt 0:00:07]} Nh4 {[%emt 0:08:52]} 50. f4 {[%emt 0:02:05]} Kb6 {[%emt 0:03:47]} 51. f5 {[%emt 0:01:17]} Kxa6 {[%emt 0:01:33]} 52. Kf4 {[%emt 0:00:02]} Kb6 {[%emt 0:02:14]} 53. Kg4 {[%emt 0:00:03]} Ng2 {[%emt 0:00:20]} 54. g6 {[%emt 0:00:09]} Ne3+ {[%emt 0:05:08]} 55. Kf4 {[%emt 0:06:52]} Nd5+ {[%emt 0:04:30]} 56. Ke5 {[%emt 0:00:16]} fxg6 {[%emt 0:00:17]} 57. fxg6 {[%emt 0:00:02]} Ne7 {[%emt 0:04:18]} 58. g7 {[%emt 0:00:10]} Kc7 {[%emt 0:00:25]} 59. Ke6 {[%emt 0:00:10]} Kd8 {[%emt 0:00:37]} 60. Kd6 {[%emt 0:00:03]} Nf5+ {[%emt 0:01:22]} 61. Kc5 {[%emt 0:00:02]} Nxg7 {[%emt 0:00:10]} 1/2-1/2

[Event "FIDE Rating Open 2024"]
[Site "Dhaka"]
[Date "2024.01.21"]
[Round "7.1"]
[White "Mohammad Minhaz Uddin"]
[Black "Zia, Tahsin Tajwar"]
[Result "1/2-1/2"]
[ECO "B13"]
[WhiteElo "2224"]
[BlackElo "2275"]
[Annotator "RC"]
[PlyCount "123"]
[EventDate "2024.01.16"]
[EventType "swiss"]
[EventCountry "BAN"]
[SourceTitle "playchess.com"]
[Source "ChessBase"]
[SourceQuality "1"]
[TimeControl "5400+30"]

1. e4 {[%emt 0:00:03]} c6 {[%emt 0:00:13]} 2. d4 {[%emt 0:00:03]} d5 {[%emt 0:00:04]} 3. exd5 {[%emt 0:00:23]} cxd5 {[%emt 0:00:06]} 4. c4 {[%emt 0:00:09]} Nf6 {[%emt 0:00:05]} 5. Nc3 {[%emt 0:00:07]} Nc6 {[%emt 0:01:11]} 6. Nf3 {[%emt 0:00:04]} a6 {[%emt 0:00:05]} 7. Bg5 {[%emt 0:06:47]} Be6 {[%emt 0:01:58]} 8. Be2 {[%emt 0:09:48]} g6 {[%emt 0:03:32]} 9. Ne5 {[%emt 0:20:25]} Nxe5 {[%emt 1:27:46]} 10. dxe5 {[%emt 0:02:23]} Ne4 {[%emt 0:00:30]} 11. Nxe4 {[%emt 0:02:27]} dxe4 {[%emt 0:00:00]} 12. Qa4+ {[%emt 0:23:36]} Bd7 {[%emt 0:00:00]} 13. Qa3 {[%emt 0:00:03]} Qc7 {[%emt 0:00:00]} 14. O-O-O {[%emt 0:06:43]} Be6 {[%emt 0:00:00]} 15. Rd2 {[%emt 0:07:08]} h6 {[%emt 0:00:00]} 16. Bh4 {[%emt 0:02:13]} Bg7 {[%emt 0:00:00]} 17. Rhd1 {[%emt 0:04:24]} g5 {[%emt 0:00:00]} 18. Bg3 {[%emt 0:00:05]} Bxe5 {[%emt 0:00:00]} 19. Qa4+ {[%emt 0:02:33]} Kf8 {[%emt 0:00:00]} 20. Qb4 {[%emt 0:02:12]} Bxg3 {[%emt 0:00:00]} 21. hxg3 {[%emt 0:00:02]} e3 {[%emt 0:00:00]} 22. fxe3 {[%emt 0:00:04]} Kg7 {[%emt 0:00:00]} 23. Qc3+ {[%emt 0:02:16]} f6 {[%emt 0:00:00]} 24. Qb4 {[%emt 0:02:02]} Rhe8 {[%emt 0:00:00]} 25. Bh5 {[%emt 0:01:19]} Red8 {[%emt 0:00:00]} 26. Rxd8 {[%emt 0:00:50]} Rxd8 {[%emt 0:00:00]} 27. Rxd8 {[%emt 0:00:13]} Qxd8 {[%emt 0:00:00]} 28. Bf3 {[%emt 0:04:02]} Qc7 {[%emt 0:00:00]} 29. Qxb7 {[%emt 0:00:22]} Qxc4+ {[%emt 0:00:00]} 30. Kd2 {[%emt 0:00:01]} Qc5 {[%emt 0:00:00]} 31. Qxa6 {[%emt 0:01:31]} Qb4+ {[%emt 0:00:00]} 32. Kd1 {[%emt 0:00:42]} Bf5 {[%emt 0:00:25]} 33. Qa3 {[%emt 0:00:09]} Qc4 {[%emt 0:06:33]} 34. Qxe7+ {[%emt 0:00:03]} Kg6 {[%emt 0:00:06]} 35. Qe8+ {[%emt 0:00:06]} Kg7 {[%emt 0:00:05]} 36. Qe7+ {[%emt 0:00:01]} Kg6 {[%emt 0:00:06]} 37. e4 {[%emt 0:02:10]} Qd4+ {[%emt 0:01:18]} 38. Kc2 {[%emt 0:00:58]} Qc4+ {[%emt 0:00:30]} 39. Kd2 {[%emt 0:00:03]} Qd4+ {[%emt 0:00:06]} 40. Ke1 {[%emt 0:00:28]} Bd7 {[%emt 0:00:16]} 41. Qa3 {[%emt 0:00:09]} Bb5 {[%emt 0:01:55]} 42. Qc3 {[%emt 0:00:33]} Qg1+ {[%emt 0:00:33]} 43. Kd2 {[%emt 0:00:01]} Qf2+ {[%emt 0:01:24]} 44. Kc1 {[%emt 0:00:08]} Qf1+ {[%emt 0:00:32]} 45. Kc2 {[%emt 0:01:06]} Qf2+ {[%emt 0:00:06]} 46. Qd2 {[%emt 0:01:08]} Qxg3 {[%emt 0:01:07]} 47. Qd5 {[%emt 0:00:18]} Qc7+ {[%emt 0:01:40]} 48. Kb1 {[%emt 0:00:38]} Bc4 {[%emt 0:02:18]} 49. Qd1 {[%emt 0:00:17]} Qa7 {[%emt 0:00:00]} 50. b3 {[%emt 0:00:08]} Be6 {[%emt 0:00:00]} 51. Bh5+ {[%emt 0:01:37]} Kg7 {[%emt 0:00:00]} 52. Bf3 {[%emt 0:00:47]} Qe3 {[%emt 0:00:00]} 53. Qc1 {[%emt 0:00:14]} Qd4 {[%emt 0:00:17]} 54. Qd1 {[%emt 0:00:19]} Qe3 {[%emt 0:00:09]} 55. Qe2 {[%emt 0:00:36]} Qg1+ {[%emt 0:00:12]} 56. Kb2 {[%emt 0:00:06]} Qd4+ {[%emt 0:00:08]} 57. Ka3 {[%emt 0:00:29]} Qa7+ {[%emt 0:00:22]} 58. Kb4 {[%emt 0:00:04]} Qd4+ {[%emt 0:00:08]} 59. Ka3 {[%emt 0:00:29]} Qa7+ {[%emt 0:00:06]} 60. Kb2 {[%emt 0:00:06]} Qd4+ {[%emt 0:00:01]} 61. Kb1 {[%emt 0:00:13]} Qg1+ {[%emt 0:00:06]} 62. Qd1 {[%emt 0:03:06]} 1/2-1/2

[Event "FIDE Rating Open 2024"]
[Site "Dhaka"]
[Date "2024.01.21"]
[Round "7.2"]
[White "Anata, Choudhury"]
[Black "Subrota, Biswas"]
[Result "1-0"]
[ECO "C63"]
[WhiteElo "2196"]
[BlackElo "2223"]
[Annotator "ChessBase"]
[PlyCount "122"]
[EventDate "2024.01.16"]
[EventType "swiss"]
[EventCountry "BAN"]
[SourceTitle "playchess.com"]
[Source "ChessBase"]
[SourceQuality "1"]
[TimeControl "5400+30"]

1. e4 {[%emt 0:00:04]} e5 {[%emt 0:00:17]} 2. Nf3 {[%emt 0:00:05]} Nc6 {[%emt 0:00:02]} 3. Bb5 {[%emt 0:00:11]} f5 {[%emt 0:00:11]} 4. d3 {[%emt 0:00:32]} fxe4 {[%emt 0:00:03]} 5. dxe4 {[%emt 0:00:09]} Nf6 {[%emt 0:00:03]} 6. O-O {[%emt 0:00:37]} d6 {[%emt 0:00:16]} 7. Bc4 {[%emt 0:01:08]} Na5 {[%emt 0:00:46]} 8. Be2 {[%emt 0:00:29]} Be7 {[%emt 0:02:49]} 9. b4 {[%emt 0:00:51]} Nc6 {[%emt 0:00:03]} 10. b5 {[%emt 0:00:08]} Nb8 {[%emt 0:06:17]} 11. Ng5 {[%emt 0:02:55]} d5 {[%emt 0:06:51]} 12. exd5 {[%emt 0:01:21]} Nxd5 {[%emt 1:18:52]} 13. Bc4 {[%emt 0:02:53]} c6 {[%emt 0:00:00]} 14. bxc6 {[%emt 0:08:28]} bxc6 {[%emt 0:00:00]} 15. Qf3 {[%emt 0:00:43]} Bxg5 {[%emt 0:00:00]} 16. Bxg5 {[%emt 0:00:10]} Qxg5 {[%emt 0:00:00]} 17. Bxd5 {[%emt 0:00:09]} Qf6 {[%emt 0:00:00]} 18. Be4 {[%emt 0:02:03]} O-O {[%emt 0:00:00]} 19. Nc3 {[%emt 0:06:37]} Qh6 {[%emt 0:00:00]} 20. Qe3 {[%emt 0:01:21]} Qxe3 {[%emt 0:00:00]} 21. fxe3 {[%emt 0:00:09]} Rxf1+ {[%emt 0:00:00]} 22. Rxf1 {[%emt 0:00:45]} Be6 {[%emt 0:00:00]} 23. Rd1 {[%emt 0:02:09]} Na6 {[%emt 0:00:00]} 24. Rd6 {[%emt 0:03:40]} Nc5 {[%emt 0:00:00]} 25. Bxc6 {[%emt 0:05:49]} Rc8 {[%emt 0:00:00]} 26. Ne4 {[%emt 0:01:59]} Nxe4 {[%emt 0:00:00]} 27. Bxe4 {[%emt 0:00:09]} Bxa2 {[%emt 0:00:00]} 28. Ra6 {[%emt 0:00:40]} Bf7 {[%emt 0:00:00]} 29. Rxa7 {[%emt 0:00:12]} Kf8 {[%emt 0:00:00]} 30. Kf2 {[%emt 0:25:58]} Bg6 {[%emt 0:00:00]} 31. Bxg6 {[%emt 0:00:15]} hxg6 {[%emt 0:00:00]} 32. Ra2 {[%emt 0:00:11]} Kf7 {[%emt 0:00:00]} 33. Ke2 {[%emt 0:01:10]} Kf6 {[%emt 0:00:00]} 34. Kd2 {[%emt 0:00:47]} Rd8+ {[%emt 0:00:00]} 35. Kc1 {[%emt 0:01:28]} Kf5 {[%emt 0:11:30]} 36. Ra4 {[%emt 0:00:06]} Rd7 {[%emt 0:00:00]} 37. h4 {[%emt 0:05:04]} Rd8 {[%emt 0:00:00]} 38. g4+ {[%emt 0:01:31]} Ke6 {[%emt 0:00:00]} 39. Ra6+ {[%emt 0:00:15]} Kf7 {[%emt 0:00:00]} 40. Ra7+ {[%emt 0:00:26]} Kf6 {[%emt 0:00:00]} 41. e4 {[%emt 0:01:45]} Rh8 {[%emt 0:00:00]} 42. g5+ {[%emt 0:03:32]} Ke6 {[%emt 0:00:00]} 43. Rxg7 {[%emt 0:00:12]} Rxh4 {[%emt 0:00:00]} 44. Rxg6+ {[%emt 0:00:09]} Ke7 {[%emt 0:04:30]} 45. Rc6 {[%emt 0:01:59]} Rxe4 {[%emt 0:00:00]} 46. Kd2 {[%emt 0:00:10]} Kf7 {[%emt 0:00:00]} 47. g6+ {[%emt 0:02:38]} Kg7 {[%emt 0:00:00]} 48. c4 {[%emt 0:00:14]} Rg4 {[%emt 0:00:00]} 49. c5 {[%emt 0:03:39]} Rc4 {[%emt 0:01:07]} 50. Kd3 {[%emt 0:00:22]} Rc1 {[%emt 0:00:17]} 51. Ke3 {[%emt 0:09:05]} Rc4 {[%emt 0:00:04]} 52. Kd3 {[%emt 0:01:37]} Rc1 {[%emt 0:00:02]} 53. Ke4 {[%emt 0:00:44]} Re1+ {[%emt 0:00:02]} 54. Kd5 {[%emt 0:00:17]} e4 {[%emt 0:00:35]} 55. Kd4 {[%emt 0:00:19]} e3 {[%emt 0:00:19]} 56. Kd3 {[%emt 0:00:23]} Kh6 {[%emt 0:00:21]} 57. Re6 {[%emt 0:02:30]} Kg7 {[%emt 0:00:11]} 58. Rxe3 {[%emt 0:00:19]} Rc1 {[%emt 0:00:44]} 59. Kd4 {[%emt 0:00:16]} Kxg6 {[%emt 0:00:19]} 60. Rf3 {[%emt 0:00:48]} Kh6 {[%emt 0:00:54]} 61. Ke4 {[%emt 0:06:25]} Re1+ {[%emt 0:03:35]} 1-0

[Event "FIDE Rating Open 2024"]
[Site "Dhaka"]
[Date "2024.01.21"]
[Round "7.3"]
[White "abzid, Rahman"]
[Black "Rahman, Ziaur"]
[Result "0-1"]
[ECO "E13"]
[WhiteElo "2004"]
[BlackElo "2428"]
[Annotator "RC"]
[PlyCount "88"]
[EventDate "2024.01.16"]
[EventType "swiss"]
[EventCountry "BAN"]
[SourceTitle "playchess.com"]
[Source "ChessBase"]
[SourceQuality "1"]
[TimeControl "5400+30"]

1. d4 {[%emt 0:00:12]} Nf6 {[%emt 0:02:17]} 2. c4 {[%emt 0:00:21]} e6 {[%emt 0:00:27]} 3. Nc3 {[%emt 0:00:21]} Bb4 {[%emt 0:00:23]} 4. Nf3 {[%emt 0:00:25]} b6 {[%emt 0:01:27]} 5. Bg5 {[%emt 0:00:33]} h6 {[%emt 0:00:38]} 6. Bh4 {[%emt 0:03:04]} g5 {[%emt 0:00:41]} 7. Bg3 {[%emt 0:00:05]} Ne4 {[%emt 0:00:13]} 8. Qc2 {[%emt 0:00:30]} Bb7 {[%emt 0:00:30]} 9. Nd2 {[%emt 0:00:30]} Bxc3 {[%emt 0:00:30]} 10. bxc3 {[%emt 0:00:30]} f5 {[%emt 0:00:30]} 11. e3 {[%emt 0:00:30]} d6 {[%emt 0:00:30]} 12. f3 {[%emt 0:12:16]} Nxg3 {[%emt 0:11:22]} 13. hxg3 {[%emt 0:00:05]} Qf6 {[%emt 0:00:31]} 14. a4 {[%emt 0:05:33]} O-O {[%emt 0:05:06]} 15. a5 {[%emt 0:02:20]} Nd7 {[%emt 0:01:28]} 16. Qa4 {[%emt 0:04:22]} Rad8 {[%emt 0:00:51]} 17. axb6 {[%emt 0:01:03]} axb6 {[%emt 0:01:51]} 18. Qb3 {[%emt 0:01:08]} Ra8 {[%emt 0:04:57]} 19. Rxa8 {[%emt 0:00:59]} Rxa8 {[%emt 0:00:03]} 20. Bd3 {[%emt 0:01:42]} Kg7 {[%emt 0:01:40]} 21. O-O {[%emt 0:02:48]} h5 {[%emt 0:01:51]} 22. Qb5 {[%emt 0:00:30]} Qe7 {[%emt 0:02:22]} 23. e4 {[%emt 0:03:11]} Ra2 {[%emt 0:05:29]} 24. Rf2 {[%emt 0:02:36]} Ra5 {[%emt 0:00:57]} 25. Qb2 {[%emt 0:00:57]} fxe4 {[%emt 0:08:16]} 26. fxe4 {[%emt 0:02:12]} Nf6 {[%emt 0:01:49]} 27. c5 {[%emt 0:02:04]} dxc5 {[%emt 0:04:19]} 28. Nc4 {[%emt 0:02:30]} Ra8 {[%emt 0:00:07]} 29. Ne5 {[%emt 0:03:32]} Rf8 {[%emt 0:01:26]} 30. Qe2 {[%emt 0:06:06]} g4 {[%emt 0:00:57]} 31. Qe3 {[%emt 0:01:24]} Nh7 {[%emt 0:00:41]} 32. Ra2 {[%emt 0:09:54]} cxd4 {[%emt 0:05:42]} 33. cxd4 {[%emt 0:00:32]} Qg5 {[%emt 0:00:46]} 34. Qxg5+ {[%emt 0:03:07]} Nxg5 {[%emt 0:00:03]} 35. Ra7 {[%emt 0:00:15]} Bxe4 {[%emt 0:03:35]} 36. Rxc7+ {[%emt 0:00:22]} Kh6 {[%emt 0:00:33]} 37. Bxe4 {[%emt 0:05:04]} Nxe4 {[%emt 0:34:12]} 38. Rc6 {[%emt 0:25:57]} Nxg3 {[%emt 0:00:00]} 39. Rxe6+ {[%emt 0:00:00]} Kg5 {[%emt 0:00:00]} 40. Kh2 {[%emt 0:00:00]} Rf1 {[%emt 0:00:00]} 41. Nf3+ {[%emt 0:00:00]} gxf3 {[%emt 0:00:00]} 42. Kxg3 {[%emt 0:00:00]} h4+ {[%emt 0:00:00]} 43. Kh2 {[%emt 0:00:00]} f2 {[%emt 0:00:00]} 44. Re2 {[%emt 0:00:00]} Rh1+ {[%emt 0:00:00]} 0-1

[Event "FIDE Rating Open 2024"]
[Site "Dhaka"]
[Date "2024.01.21"]
[Round "7.4"]
[White "Saiful Islam, Chowdhury"]
[Black "Md, Sariatullah"]
[Result "1-0"]
[ECO "B20"]
[WhiteElo "2130"]
[BlackElo "2004"]
[Annotator "RC"]
[PlyCount "119"]
[EventDate "2024.01.16"]
[EventType "swiss"]
[EventCountry "BAN"]
[SourceTitle "playchess.com"]
[Source "ChessBase"]
[SourceQuality "1"]
[TimeControl "5400+30"]

1. e4 {[%emt 0:00:08]} c5 {[%emt 0:11:38]} 2. Nf3 {[%emt 0:00:16]} e6 {[%emt 0:00:05]} 3. Nc3 {[%emt 0:00:54]} a6 {[%emt 0:01:12]} 4. a4 {[%emt 0:00:56]} Qc7 {[%emt 0:00:30]} 5. Bc4 {[%emt 0:01:50]} Nc6 {[%emt 0:01:02]} 6. O-O {[%emt 0:00:30]} Nf6 {[%emt 0:00:05]} 7. Re1 {[%emt 0:00:41]} d6 {[%emt 0:00:09]} 8. d4 {[%emt 0:01:56]} cxd4 {[%emt 0:00:08]} 9. Nxd4 {[%emt 0:00:14]} Be7 {[%emt 0:00:59]} 10. Nxc6 {[%emt 0:00:51]} bxc6 {[%emt 0:00:53]} 11. a5 {[%emt 0:01:46]} O-O {[%emt 0:01:10]} 12. Bd3 {[%emt 0:01:24]} e5 {[%emt 0:01:22]} 13. h3 {[%emt 0:02:18]} Bb7 {[%emt 0:05:20]} 14. f4 {[%emt 0:00:51]} Rfe8 {[%emt 0:00:14]} 15. Qf3 {[%emt 0:00:50]} Nd7 {[%emt 0:03:23]} 16. Rf1 {[%emt 0:00:37]} d5 {[%emt 0:00:56]} 17. Kh1 {[%emt 0:04:20]} Nf6 {[%emt 0:07:51]} 18. fxe5 {[%emt 0:05:00]} Qxe5 {[%emt 0:00:34]} 19. exd5 {[%emt 0:00:15]} cxd5 {[%emt 0:07:23]} 20. Bf4 {[%emt 0:01:48]} Qe6 {[%emt 0:03:14]} 21. Rae1 {[%emt 0:01:53]} Qd7 {[%emt 0:00:21]} 22. Be5 {[%emt 0:01:23]} Bd8 {[%emt 0:05:00]} 23. Qg3 {[%emt 0:12:40]} Rxe5 {[%emt 0:00:19]} 24. Qxe5 {[%emt 0:00:21]} Bc7 {[%emt 0:02:16]} 25. Qe7 {[%emt 0:00:19]} Qc6 {[%emt 0:01:28]} 26. Rxf6 {[%emt 0:00:23]} gxf6 {[%emt 0:00:50]} 27. Bxh7+ {[%emt 0:05:54]} Kg7 {[%emt 0:07:44]} 28. Bf5 {[%emt 0:00:52]} Qd6 {[%emt 0:03:53]} 29. Qxd6 {[%emt 0:00:30]} Bxd6 {[%emt 0:00:02]} 30. Kg1 {[%emt 0:08:01]} Bb4 {[%emt 0:01:38]} 31. Ra1 {[%emt 0:02:46]} Re8 {[%emt 0:02:03]} 32. Ra4 {[%emt 0:01:25]} Bc5+ {[%emt 0:00:51]} 33. Kf1 {[%emt 0:00:23]} d4 {[%emt 0:02:20]} 34. Nd1 {[%emt 0:01:19]} Bc6 {[%emt 0:00:24]} 35. Ra1 {[%emt 0:00:59]} Bb5+ {[%emt 0:02:22]} 36. Bd3 {[%emt 0:00:13]} Bxd3+ {[%emt 0:00:11]} 37. cxd3 {[%emt 0:00:18]} Bb4 {[%emt 0:00:19]} 38. Nf2 {[%emt 0:04:16]} Re3 {[%emt 0:05:07]} 39. g4 {[%emt 0:02:29]} Re5 {[%emt 0:02:56]} 40. Ra4 {[%emt 0:02:38]} Rb5 {[%emt 0:02:56]} 41. Ne4 {[%emt 0:00:45]} Kg6 {[%emt 0:02:12]} 42. Ke2 {[%emt 0:01:57]} Bxa5 {[%emt 0:00:25]} 43. Kf3 {[%emt 0:00:33]} f5 {[%emt 0:00:48]} 44. Nd6 {[%emt 0:02:56]} fxg4+ {[%emt 0:00:17]} 45. hxg4 {[%emt 0:00:13]} Rd5 {[%emt 0:07:15]} 46. Nc4 {[%emt 0:00:28]} Bc7 {[%emt 0:03:12]} 47. Rxa6+ {[%emt 0:00:52]} Kg5 {[%emt 0:00:41]} 48. Ra7 {[%emt 0:00:35]} Rc5 {[%emt 0:00:39]} 49. b4 {[%emt 0:00:48]} Rc6 {[%emt 0:00:06]} 50. b5 {[%emt 0:00:53]} Rf6+ {[%emt 0:00:12]} 51. Ke4 {[%emt 0:00:24]} Bh2 {[%emt 0:00:19]} 52. b6 {[%emt 0:01:44]} Kxg4 {[%emt 0:02:01]} 53. b7 {[%emt 0:01:09]} Re6+ {[%emt 0:02:18]} 54. Kd5 {[%emt 0:27:46]} Re1 {[%emt 0:00:57]} 55. Ra2 {[%emt 0:00:00]} Bf4 {[%emt 0:03:54]} 56. Rf2 {[%emt 0:00:00]} Rb1 {[%emt 0:00:10]} 57. Kc6 {[%emt 0:00:00]} f5 {[%emt 0:00:38]} 58. Rxf4+ {[%emt 0:00:00]} Kxf4 {[%emt 0:00:18]} 59. Nb6 {[%emt 0:00:00]} Rc1+ {[%emt 0:01:49]} 60. Kd5 {[%emt 0:00:00]} 1-0